bitfinex-derivatives/quotes_SOLF0:USTF0_20241027
["timestamp","ask_amount","ask_price","bid_price","bid_amount"]
[1730034463161,20.0322,176.0,175.99,2.8443]
[1730034467977,20.0322,176.0,175.94,4.56]
[1730034468173,20.0322,176.0,175.93,1.2405]
[1730034468373,20.0322,176.0,175.92,1.1827]
[1730034468579,20.0322,176.0,175.96,2.8446]
[1730034468977,20.0322,176.0,175.92,1.1827]
[1730034469373,20.0322,176.0,175.96,2.8447]
[1730034469567,20.0322,176.0,175.92,1.1827]
[1730034469979,20.0322,176.0,175.97,2.8445]
[1730034471780,22.8763,176.0,175.96,2.8447]
[1730034472084,20.0322,176.0,175.85,1.2008]
[1730034472381,2.8452,175.94,175.85,6.9708]
[1730034472567,7.4052,175.94,175.85,6.9708]
[1730034472971,4.56,175.94,175.85,2.4108]
[1730034473175,4.56,175.94,175.85,1.21]
[1730034473582,4.56,175.94,175.89,2.8458]
[1730034474080,7.4052,175.94,175.89,2.8458]
[1730034474477,4.56,175.94,175.9,2.8456]
[1730034475278,7.4052,175.94,175.9,2.8456]
[1730034475579,4.56,175.94,175.83,1.1549]
[1730034475968,2.8457,175.91,175.83,1.1549]
[1730034476284,4.56,175.9,175.86,2.8463]
[1730034477078,2.8462,175.87,175.79,1.1891]
[1730034477291,5.7578,175.9,175.79,1.1891]
[1730034477780,2.8462,175.88,175.83,2.8468]
[1730034477974,5.7578,175.9,175.79,1.1891]
[1730034478685,2.8463,175.87,175.82,2.8469]
[1730034478876,4.56,175.86,175.75,4.56]
[1730034479077,4.56,175.85,175.81,2.8471]
[1730034480184,4.56,175.85,175.75,4.56]
[1730034480383,4.56,175.85,175.76,1.04594991]
[1730034480584,4.56,175.88,175.85,2.8464]
[1730034481378,4.56,175.88,175.87,2.8462]
[1730034482484,2.5025,175.93,175.87,2.8462]
[1730034482680,4.56,175.92,175.87,2.8462]
[1730034483281,2.8456,175.91,175.87,2.8462]
[1730034484890,2.8456,175.91,175.88,2.846]
[1730034485888,2.846,175.89,175.81,1.1532]
[1730034486182,4.72,175.88,175.81,1.1532]
[1730034486587,4.72,175.88,175.86,2.8463]
[1730034486780,4.72,175.88,175.81,1.1532]
[1730034487181,4.72,175.88,175.85,2.8465]
[1730034487382,4.72,175.88,175.76,1.2016]
[1730034487683,4.72,175.88,175.77,1.04594964]
[1730034488278,2.8463,175.87,175.76,2.3931]
[1730034488485,4.72,175.88,175.76,2.3931]
[1730034488682,2.5041,175.86,175.71,5.9575]
[1730034488886,2.5041,175.86,175.71,7.1733]
[1730034489085,2.847,175.82,175.78,2.8476]
[1730034489283,4.72,175.81,175.78,2.8476]
[1730034489683,4.72,175.81,175.71,7.1733]
[1730034489684,7.5673,175.81,175.71,2.4533]
[1730034489887,4.72,175.81,175.71,2.4533]
[1730034490788,2.8475,175.8,175.71,2.4533]
[1730034490989,4.72,175.81,175.76,2.848]
[1730034491995,4.72,175.81,175.74,2.8483]
[1730034492386,1.2323,175.8,175.71,1.2158]
[1730034492587,2.8476,175.79,175.71,1.2158]
[1730034492987,2.8476,175.79,175.67,4.72]
[1730034493193,2.8476,175.79,175.74,2.8482]
[1730034493996,2.8476,175.79,175.75,2.8481]
[1730034494890,2.8478,175.78,175.74,2.8483]
[1730034495093,4.72,175.77,175.67,1.1656]
[1730034495597,7.5679,175.77,175.67,1.1656]
[1730034495998,7.5679,175.77,175.72,2.8485]
[1730034496296,2.8482,175.76,175.67,1.1656]
[1730034496697,2.8482,175.76,175.71,2.8487]
[1730034496999,4.72,175.77,175.67,1.1656]
[1730034497200,4.72,175.77,175.76,2.848]
[1730034497682,4.72,175.81,175.7,4.72]
[1730034497885,4.72,175.81,175.71,2.31175123]
[1730034498094,4.72,175.81,175.71,6.9631]
[1730034498290,4.72,175.81,175.8,2.8474]
[1730034506288,4.72,175.81,175.79,2.8475]
[1730034506895,4.72,175.81,175.8,2.8474]
[1730034507890,4.72,175.81,175.71,6.9631]
[1730034508092,4.72,175.81,175.79,2.8475]
[1730034510296,4.72,175.81,175.71,1.2654]
[1730034510499,4.72,175.81,175.71,5.9854]
[1730034510999,4.72,175.81,175.72,1.0464441]
[1730034511193,1.2192,175.87,175.72,1.0464441]
[1730034511398,4.72,175.86,175.82,2.8469]
[1730034511596,4.72,175.86,175.73,6.8511]
[1730034511799,4.72,175.86,175.74,2.31402174]
[1730034512001,4.72,175.86,175.83,2.8469]
[1730034512903,4.72,175.86,175.83,2.8468]
[1730034513306,4.72,175.86,175.75,4.72]
[1730034513507,4.72,175.86,175.83,2.8468]
[1730034515307,4.0655,175.87,175.83,2.8468]
[1730034515504,4.64,175.92,175.79,4.64]
[1730034515710,4.64,175.91,175.8,5.819]
[1730034516008,4.64,175.91,175.87,2.8462]
[1730034516900,4.64,175.91,175.88,2.846]
[1730034517297,4.64,175.94,175.81,5.8798]
[1730034517504,4.64,175.94,175.82,1.1705]
[1730034518107,4.64,175.94,175.83,5.6936]
[1730034518905,1.2755,175.95,175.83,5.6936]
[1730034518906,1.2755,175.95,175.92,2.8454]
[1730034519114,5.9155,175.95,175.85,4.64]
[1730034519498,4.64,175.95,175.94,2.8451]
[1730034519905,1.2805,175.98,175.94,2.8451]
[1730034520110,4.64,175.97,175.94,2.8451]
[1730034520319,24.6722,176.0,175.89,4.64]
[1730034520606,24.6722,176.0,175.9,2.4621]
[1730034520812,20.0322,176.0,175.9,2.4621]
[1730034521013,20.0322,176.0,175.9,3.7072]
[1730034521205,20.0322,176.0,175.99,2.8443]
[1730034521407,20.0322,176.0,175.9,3.7072]
[1730034521903,20.0322,176.0,175.99,2.8443]
[1730034522304,20.0322,176.0,175.95,2.8449]
[1730034522505,20.0322,176.0,175.93,4.64]
[1730034522814,20.0322,176.0,175.9,3.7072]
[1730034522815,20.0322,176.0,175.91,4.64]
[1730034523114,22.8764,176.0,175.95,2.8448]
[1730034523300,22.8764,176.0,175.91,4.64]
[1730034523301,20.0322,176.0,175.91,4.64]
[1730034523501,20.0322,176.0,175.95,2.8448]
[1730034523713,20.0322,176.0,175.9,3.7072]
[1730034524403,20.0322,176.0,175.97,2.8445]
[1730034524604,20.0322,176.0,175.9,3.7072]
[1730034525502,20.0322,176.0,175.93,2.8453]
[1730034525711,20.0322,176.0,175.9,3.7072]
[1730034526521,20.0322,176.0,175.97,2.8446]
[1730034529111,20.0322,176.0,175.9,3.7072]
[1730034529112,20.0322,176.0,175.99,2.8443]
[1730034529720,20.0322,176.0,175.93,4.64]
[1730034531221,20.0322,176.0,175.99,2.8443]
[1730034532016,8.4697,176.0,175.99,2.8443]
[1730034532320,5.5437,176.0,175.99,2.8443]
[1730034533313,0.0001,176.0,175.99,2.8443]
[1730034533617,0.0001,176.0,175.99,3.88918607]
[1730034536324,0.0001,176.0,175.99,7.4843]
[1730034536516,0.0001,176.0,175.99,2.8443]
[1730034537836,0.0001,176.0,175.95,4.64]
[1730034538019,0.0001,176.0,175.99,2.8443]
[1730034539214,0.0001,176.0,175.98,2.8444]
[1730034539420,0.0001,176.0,175.95,4.64]
[1730034540019,0.0001,176.0,175.99,2.8443]
[1730034540821,0.0001,176.0,175.95,4.64]
[1730034541115,0.0001,176.0,175.9,5.6914]
[1730034541322,0.0001,176.0,175.91,5.68538641]
[1730034541524,0.0001,176.0,175.99,2.8443]
[1730034543624,0.0001,176.0,175.99,7.4843]
[1730034545122,0.0001,176.0,175.99,2.8443]
[1730034547127,0.0001,176.0,175.99,3.88928825]
[1730034548116,0.0001,176.0,175.99,3.88921242]
[1730034549518,0.0001,176.0,175.99,8.70921242]
[1730034552133,0.0001,176.0,175.99,8.70923211]
[1730034555029,0.0001,176.0,175.99,3.88923211]
[1730034555426,0.0001,176.0,175.99,7.6643]
[1730034555626,0.0001,176.0,175.99,2.8443]
[1730034558437,0.0001,176.0,175.99,3.88927194]
[1730034559333,4.82,176.14,176.11,2.8422]
[1730034559927,3.7901,176.16,176.05,4.82]
[1730034560139,3.7901,176.16,176.14,2.8418]
[1730034561032,3.7901,176.16,176.15,2.8417]
[1730034561530,3.7901,176.16,176.06,4.82]
[1730034562533,3.7901,176.16,176.11,2.8422]
[1730034563838,3.7901,176.16,176.05,4.82]
[1730034564445,2.8417,176.15,176.09,2.8426]
[1730034564835,3.7901,176.16,176.05,4.82]
[1730034565038,3.7901,176.16,176.02,4.82]
[1730034565241,3.7901,176.16,176.0,4.82]
[1730034565440,2.8423,176.12,176.04,2.8435]
[1730034565638,4.82,176.11,175.97,4.82]
[1730034565945,4.82,176.1,175.97,4.82]
[1730034566239,2.81733433,176.19,175.97,4.82]
[1730034566240,4.82,176.09,175.97,4.82]
[1730034566433,4.82,176.08,175.97,4.82]
[1730034566636,4.82,176.07,175.97,4.82]
[1730034567442,4.82,176.07,175.89,2.145]
[1730034567637,4.82,176.07,175.9,5.86525274]
[1730034567838,4.82,176.07,175.91,1.04525274]
[1730034568038,4.82,176.07,175.9,4.82]
[1730034568235,2.8439,176.02,175.95,2.8448]
[1730034568438,4.82,176.01,175.81,60.908]
[1730034568648,4.82,176.01,175.85,5.8654855]
[1730034568844,4.0172,176.0,175.94,2.8451]
[1730034569145,1.173,176.0,175.85,4.82]
[1730034569341,2.8444,175.99,175.93,2.8452]
[1730034569846,1.173,176.0,175.85,4.82]
[1730034570047,1.173,176.0,175.86,1.04560725]
[1730034570349,2.8443,175.99,175.92,2.8453]
[1730034570548,2.8443,175.99,175.85,4.82]
[1730034570845,2.4566,175.98,175.86,1.04557411]
[1730034571942,2.4566,175.98,175.85,4.82]
[1730034572142,4.82,175.97,175.93,2.8451]
[1730034572543,4.82,175.97,175.85,4.82]
[1730034572846,4.82,175.97,175.9,2.8457]
[1730034573645,2.8449,175.96,175.9,2.8457]
[1730034574445,4.82,175.97,175.82,4.82]
[1730034574653,2.8451,175.95,175.89,2.8458]
[1730034574848,2.8451,175.95,175.82,4.82]
[1730034575050,2.8451,175.95,175.83,1.0457369]
[1730034575244,2.4566,175.98,175.83,1.0457369]
[1730034575444,5.08,175.97,175.83,1.0457369]
[1730034575847,5.08,175.97,175.82,4.82]
[1730034576047,7.9246,175.97,175.83,1.04567027]
[1730034576247,5.08,175.97,175.83,1.04567027]
[1730034576647,7.9246,175.97,175.91,2.8456]
[1730034576954,5.08,175.96,175.91,2.8456]
[1730034577344,2.4566,175.98,175.82,4.82]
[1730034577542,5.08,175.96,175.84,5.6934]
[1730034577749,5.08,175.96,175.85,1.0455821]
[1730034577947,5.08,175.96,175.94,2.845]
[1730034579058,5.08,175.97,175.9,2.8457]
[1730034579243,5.08,175.97,175.87,5.08]
[1730034579649,5.08,175.97,175.94,2.845]
[1730034580156,5.08,175.97,175.87,5.08]
[1730034580344,7.5366,175.98,175.96,2.8446]
[1730034580543,7.5366,175.98,175.87,5.08]
[1730034580750,7.5366,175.98,175.96,2.8447]
[1730034581556,2.4566,175.98,175.97,2.8446]
[1730034584457,5.08,175.99,175.98,2.8444]
[1730034586958,5.08,175.99,175.97,2.8446]
[1730034587160,5.08,175.99,175.88,2.4455]
[1730034587560,5.08,175.99,175.88,1.2242]
[1730034588259,5.08,175.99,175.91,2.8455]
[1730034588448,5.08,175.99,175.88,1.2242]
[1730034589062,5.08,175.99,175.95,2.8448]
[1730034590359,5.08,175.99,175.84,5.6934]
[1730034590655,5.08,175.99,175.93,2.8452]
[1730034591161,7.9244,175.99,175.93,2.8452]
[1730034591365,7.9244,175.99,175.94,2.8451]
[1730034591555,7.9244,175.99,175.85,5.08]
[1730034592062,7.9244,175.99,175.93,2.8451]
[1730034592864,2.8448,175.96,175.91,2.8455]
[1730034593057,1.1786,175.95,175.84,10.7734]
[1730034593363,5.08,175.94,175.84,10.7734]
[1730034593554,5.08,175.94,175.91,2.8454]
[1730034593862,5.08,175.94,175.84,10.7734]
[1730034594060,1.276,175.93,175.84,5.6934]
[1730034594256,1.276,175.93,175.91,2.8455]
[1730034595557,1.276,175.93,175.84,5.6934]
[1730034597356,1.276,175.93,175.92,2.8454]
[1730034597757,5.08,175.97,175.84,5.6934]
[1730034598156,5.08,175.97,175.94,2.8451]
[1730034600661,2.8449,175.96,175.91,2.8455]
[1730034600867,4.0381,175.96,175.84,5.6934]
[1730034601460,4.0381,175.96,175.91,2.8455]
[1730034601761,1.1932,175.96,175.84,5.6934]
[1730034601962,2.845,175.95,175.9,2.8456]
[1730034602164,1.1932,175.96,175.81,1.1566]
[1730034602462,2.8454,175.93,175.81,6.2366]
[1730034602659,6.277,175.92,175.81,6.2366]
[1730034603266,6.277,175.92,175.88,2.846]
[1730034605562,6.277,175.92,175.89,2.8459]
[1730034606967,6.277,175.92,175.81,6.2366]
[1730034607165,6.277,175.92,175.91,2.8456]
[1730034607166,5.08,175.92,175.91,2.8456]
[1730034607470,4.94,175.94,175.81,6.2366]
[1730034607660,1.2559,175.98,175.94,2.8449]
[1730034607661,4.94,175.95,175.94,2.8449]
[1730034608262,1.2559,175.98,175.87,1.279]
[1730034608465,1.2559,175.98,175.97,2.8446]
[1730034608768,1.2559,175.98,175.88,6.9128]
[1730034608971,1.2559,175.98,175.96,2.8447]
[1730034609370,6.1959,175.98,175.96,2.8447]
[1730034609570,6.1959,175.98,175.97,2.8446]
[1730034610066,6.1959,175.98,175.88,6.9128]
[1730034610770,4.94,175.98,175.88,6.9128]
[1730034611164,4.94,175.98,175.96,2.8446]
[1730034611368,4.94,175.98,175.88,6.9128]
[1730034612568,4.94,175.98,175.96,2.8447]
[1730034613865,4.94,175.98,175.95,2.8448]
[1730034615179,4.94,175.98,175.96,2.8448]
[1730034616174,4.94,175.98,175.95,2.8448]
[1730034616574,4.94,175.98,175.88,1.2209]
[1730034616775,2.845,175.95,175.87,1.279]
[1730034617371,2.845,175.95,175.89,2.8458]
[1730034617767,2.845,175.95,175.87,1.279]
[1730034617973,2.845,175.95,175.89,2.8458]
[1730034618375,1.162,175.94,175.89,2.8458]
[1730034618674,7.7853,175.93,175.87,2.8461]
[1730034618876,4.94,175.93,175.84,1.269]
[1730034620576,4.94,175.93,175.88,2.846]
[1730034620877,7.7854,175.93,175.83,4.94]
[1730034621272,7.7854,175.93,175.87,2.8461]
[1730034621667,2.8457,175.91,175.8,7.3158]
[1730034621872,6.2178,175.93,175.83,2.8468]
[1730034622179,6.2178,175.93,175.8,2.3758]
[1730034622381,2.846,175.89,175.8,2.3758]
[1730034622678,4.94,175.88,175.8,2.3758]
[1730034623783,4.94,175.88,175.82,2.847]
[1730034623983,4.94,175.88,175.8,2.3758]
[1730034624378,4.94,175.88,175.84,2.8467]
[1730034630687,1.1875,175.87,175.84,2.8467]
[1730034631687,1.1875,175.87,175.85,2.8465]
[1730034631886,1.1875,175.87,175.8,1.1834]
[1730034634090,4.0338,175.87,175.81,2.8471]
[1730034634284,1.1875,175.87,175.76,4.94]
[1730034634888,2.8465,175.86,175.81,2.8472]
[1730034635284,1.1875,175.87,175.75,1.2415]
[1730034635585,1.1628,175.85,175.75,1.2415]
[1730034635790,4.76,175.84,175.75,1.2415]
[1730034635981,2.8469,175.83,175.75,1.2415]
[1730034636693,2.8469,175.83,175.78,2.8476]
[1730034637780,4.76,175.84,175.75,1.2415]
[1730034638489,4.76,175.84,175.74,1.2731]
[1730034638985,2.8472,175.82,175.74,1.2731]
[1730034639391,4.76,175.84,175.74,1.2731]
[1730034639582,2.8473,175.81,175.77,2.8478]
[1730034639788,1.1628,175.85,175.69,2.4048]
[1730034639789,4.76,175.8,175.69,2.4048]
[1730034639981,4.76,175.79,175.69,2.4048]
[1730034640188,4.76,175.79,175.7,1.04645995]
[1730034640582,1.1628,175.85,175.71,4.76]
[1730034640789,5.9811,175.84,175.71,4.76]
[1730034641189,2.8472,175.82,175.77,2.8478]
[1730034641595,5.9811,175.84,175.71,4.76]
[1730034641797,5.9811,175.84,175.69,2.4048]
[1730034641988,5.9811,175.84,175.7,1.0464273]
[1730034642192,2.8475,175.8,175.75,2.8482]
[1730034642388,4.76,175.79,175.75,2.8482]
[1730034642695,4.76,175.78,175.69,2.4048]
[1730034642890,6.0374,175.77,175.69,2.4048]
[1730034643290,8.8853,175.77,175.72,2.8486]
[1730034643790,6.0374,175.77,175.69,2.4048]
[1730034644399,1.1628,175.85,175.69,2.4048]
[1730034644588,6.0044,175.84,175.7,6.74437099]
[1730034644893,6.0044,175.84,175.71,1.04647099]
[1730034645200,2.8471,175.82,175.77,2.8478]
[1730034645498,6.0044,175.84,175.69,7.1648]
[1730034645694,6.0044,175.84,175.7,6.74424321]
[1730034645897,1.2444,175.84,175.79,2.8474]
[1730034646092,4.76,175.83,175.79,2.8474]
[1730034646689,4.76,175.83,175.73,4.76]
[1730034646888,1.2444,175.84,175.73,4.76]
[1730034646889,1.2444,175.84,175.74,1.04626543]
[1730034647094,6.0044,175.84,175.74,1.04626543]
[1730034647491,6.0044,175.84,175.82,2.847]
[1730034647687,6.0044,175.84,175.73,4.76]
[1730034647688,4.76,175.84,175.73,4.76]
[1730034647893,4.76,175.84,175.74,1.04623712]
[1730034648804,4.76,175.84,175.82,2.8469]
[1730034649001,4.76,175.86,175.82,2.8469]
[1730034649898,4.76,175.86,175.84,2.8466]
[1730034650198,4.76,175.86,175.77,4.76]
[1730034650689,4.76,175.86,175.83,2.8468]
[1730034651594,4.76,175.86,175.69,8.103]
[1730034651803,2.5568,175.85,175.7,1.04626149]
[1730034652399,4.76,175.84,175.7,1.04626149]
[1730034652788,2.5568,175.85,175.7,5.80626149]
[1730034652990,4.76,175.84,175.71,1.97046149]
[1730034653195,4.76,175.84,175.72,1.04626149]
[1730034653691,4.76,175.84,175.79,2.8475]
[1730034655400,4.76,175.83,175.81,2.8471]
[1730034655601,4.76,175.83,175.71,0.9242]
[1730034655801,4.76,175.83,175.72,1.0462776]
[1730034656595,4.76,175.83,175.79,2.8474]
[1730034656995,4.76,175.83,175.74,4.76]
[1730034657395,4.76,175.83,175.76,2.8479]
[1730034657601,4.76,175.83,175.74,4.76]
[1730034658099,4.76,175.83,175.79,2.8474]
[1730034659106,4.76,175.83,175.8,2.8473]
[1730034659308,4.76,175.83,175.74,4.76]
[1730034659702,4.76,175.83,175.8,2.8473]
[1730034660402,4.76,175.83,175.74,4.76]
[1730034660403,4.76,175.83,175.77,2.8477]
[1730034661096,4.76,175.83,175.74,4.76]
[1730034661796,4.76,175.83,175.76,2.8479]
[1730034662005,4.76,175.83,175.74,4.76]
[1730034662400,4.76,175.83,175.81,2.847]
[1730034663309,4.76,175.85,175.81,2.847]
[1730034664609,4.76,175.85,175.82,2.847]
[1730034665803,4.76,175.85,175.74,4.76]
[1730034666007,3.7249,175.94,175.75,1.04619688]
[1730034666210,4.72,175.93,175.75,1.04619688]
[1730034666510,4.72,175.93,175.76,1.1736]
[1730034666817,2.8465,175.86,175.81,2.8471]
[1730034667109,4.72,175.85,175.81,2.8471]
[1730034667311,7.5666,175.85,175.81,2.8471]
[1730034667713,4.72,175.85,175.79,2.8474]
[1730034668009,2.8468,175.84,175.79,2.8474]
[1730034668597,2.8468,175.84,175.76,1.1736]
[1730034668802,2.8468,175.84,175.8,2.8473]
[1730034669008,2.8468,175.84,175.76,1.1736]
[1730034669508,2.8468,175.84,175.8,2.8473]
[1730034669705,7.5666,175.85,175.8,2.8473]
[1730034669906,4.72,175.85,175.76,1.1736]
[1730034670101,4.72,175.85,175.76,6.8694]
[1730034670308,4.72,175.85,175.77,1.2269]
[1730034671099,3.7249,175.94,175.77,1.2269]
[1730034671299,3.7249,175.94,175.84,2.8466]
[1730034671300,2.8458,175.9,175.84,2.8466]
[1730034671806,4.72,175.89,175.84,2.8466]
[1730034672407,4.72,175.89,175.78,5.9877]
[1730034673102,4.72,175.89,175.85,2.8464]
[1730034673908,3.7249,175.94,175.85,2.8464]
[1730034674211,4.72,175.93,175.78,5.9877]
[1730034674401,4.72,175.93,175.87,2.8461]
[1730034674606,7.5655,175.92,175.87,2.8461]
[1730034675410,7.5655,175.92,175.88,2.846]
[1730034676213,7.5655,175.92,175.78,5.9877]
[1730034676214,2.8458,175.9,175.86,2.8463]
[1730034676410,4.72,175.92,175.78,5.9877]
[1730034676912,2.8457,175.91,175.78,5.9877]
[1730034677409,3.7249,175.94,175.79,5.6951]
[1730034677617,4.72,175.93,175.79,5.6951]
[1730034678017,2.8455,175.92,175.87,2.8462]
[1730034678512,4.72,175.92,175.9,2.8457]
[1730034678712,4.72,175.92,175.82,4.72]
[1730034680210,4.72,175.92,175.79,4.72]
[1730034680416,2.8459,175.89,175.85,2.8464]
[1730034681414,2.8459,175.89,175.79,4.72]
[1730034681614,2.8459,175.89,175.86,2.8463]
[1730034681920,2.8463,175.87,175.78,5.9877]
[1730034682119,4.72,175.88,175.84,2.8467]
[1730034682616,4.72,175.88,175.83,2.8468]
[1730034682817,1.279,175.87,175.83,2.8468]
[1730034683117,4.1253,175.87,175.83,2.8468]
[1730034683418,1.279,175.87,175.82,2.847]
[1730034683609,2.8466,175.85,175.82,2.847]
[1730034683805,2.4617,175.87,175.73,1.2427]
[1730034684018,1.2307,175.86,175.79,2.8474]
[1730034684218,2.8471,175.82,175.73,5.9627]
[1730034684418,7.5671,175.82,175.73,5.9627]
[1730034684717,4.72,175.82,175.79,2.8475]
[1730034685025,4.72,175.82,175.7,2.3525]
[1730034685317,4.72,175.82,175.75,2.8481]
[1730034685511,4.72,175.82,175.7,7.0725]
[1730034685712,4.72,175.82,175.7,2.3525]
[1730034686016,4.72,175.82,175.7,1.1571]
[1730034686417,2.8478,175.78,175.74,2.8482]
[1730034686612,4.72,175.78,175.7,1.1571]
[1730034687012,4.72,175.81,175.7,1.1571]
[1730034687220,1.2307,175.86,175.71,1.04639595]
[1730034687418,4.72,175.85,175.72,4.72]
[1730034687618,4.72,175.85,175.73,1.04639595]
[1730034687820,4.72,175.85,175.73,2.27029595]
[1730034688021,4.72,175.85,175.73,1.2239]
[1730034688318,2.8467,175.84,175.79,2.8475]
[1730034688915,50.0,175.8,175.79,2.8475]
[1730034689117,50.0,175.8,175.78,2.8476]
[1730034691521,50.0,175.8,175.79,2.8475]
[1730034692113,50.0,175.8,175.73,1.2239]
[1730034692314,50.0,175.8,175.78,2.8476]
[1730034693317,50.0,175.8,175.73,1.2239]
[1730034693512,50.0,175.8,175.77,2.8478]
[1730034693717,50.0,175.8,175.73,1.2239]
[1730034693914,50.0,175.8,175.75,2.8482]
[1730034694115,50.0,175.8,175.76,4.72]
[1730034694116,45.2277,175.8,175.76,4.72]
[1730034694524,45.2277,175.8,175.79,2.8475]
[1730034695716,45.2277,175.8,175.74,5.9895]
[1730034695923,45.2277,175.8,175.73,5.9439]
[1730034696426,45.2277,175.8,175.76,2.8479]
[1730034696830,48.0751,175.8,175.74,2.8482]
[1730034697224,48.0751,175.8,175.7,5.8964]
[1730034697533,48.0751,175.8,175.74,2.8482]
[1730034697829,48.0751,175.8,175.7,5.8964]
[1730034698024,45.2277,175.8,175.75,2.8481]
[1730034701334,45.2277,175.8,175.73,2.8485]
[1730034701534,45.2277,175.8,175.7,5.8964]
[1730034701829,45.2277,175.8,175.71,1.04642917]
[1730034702033,45.2277,175.8,175.75,2.8481]
[1730034702236,45.2277,175.8,175.7,5.8964]
[1730034703329,45.2277,175.8,175.76,2.848]
[1730034706338,45.2277,175.8,175.77,2.8478]
[1730034707428,48.0752,175.8,175.76,2.848]
[1730034707942,45.2277,175.8,175.78,2.8476]
[1730034711440,45.2277,175.8,175.7,5.8964]
[1730034711635,45.2277,175.8,175.77,2.8478]
[1730034711840,45.2277,175.8,175.68,5.6985]
[1730034712036,7.1684,175.79,175.7,4.72]
[1730034712838,7.1684,175.79,175.75,2.848]
[1730034713047,7.1684,175.79,175.7,4.72]
[1730034714139,10.016,175.79,175.7,4.72]
[1730034714341,45.2277,175.75,175.71,2.8487]
[1730034714543,45.2277,175.75,175.7,4.72]
[1730034715337,45.2277,175.75,175.74,2.8483]
[1730034729854,45.2277,175.75,175.74,7.4483]
[1730034733755,45.2277,175.75,175.74,2.8483]
[1730034734860,45.2277,175.75,175.71,4.6]
[1730034735058,45.2277,175.75,175.73,2.8484]
[1730034735257,45.2277,175.75,175.71,4.6]
[1730034735861,45.2277,175.75,175.73,2.8484]
[1730034737364,45.2277,175.75,175.73,2.8485]
[1730034738375,45.2277,175.75,175.69,131.37796128]
[1730034738376,45.2277,175.75,175.69,126.77796128]
[1730034738762,48.076,175.75,175.69,129.62706128]
[1730034738963,45.2277,175.75,175.69,126.77796128]
[1730034739467,2.8485,175.74,175.69,126.77796128]
[1730034739765,7.4485,175.74,175.69,126.77796128]
[1730034739963,7.4485,175.74,175.69,129.62706128]
[1730034740465,2.8487,175.72,175.67,2.8494]
[1730034740665,2.3777,175.71,175.67,2.8494]
[1730034740868,2.3777,175.71,175.63,4.6]
[1730034741061,4.6,175.7,175.53,9.97643402]
[1730034741265,51.0671,175.7,175.55,6.90773579]
[1730034741458,51.0671,175.7,175.56,1.04713579]
[1730034741656,2.8494,175.68,175.56,1.04713579]
[1730034742163,2.8496,175.67,175.56,1.04713579]
[1730034742368,2.8496,175.67,175.57,4.6]
[1730034743271,2.8496,175.67,175.61,2.8504]
[1730034743576,2.8492,175.69,175.57,4.6]
[1730034743866,51.0671,175.7,175.58,1.04719209]
[1730034744073,2.8494,175.68,175.58,1.04719209]
[1730034744573,2.8494,175.68,175.61,2.8503]
[1730034744773,2.8494,175.68,175.57,4.6]